fUSD/lending_fUSD_20240404
["ID","MTS","AMOUNT","RATE_DAILY","PERIOD"]
[321438563,1712190684339,-6016.54,0.00054794,120]
[321438564,1712190684353,-1283.01,0.00054794,120]
[321438565,1712190684369,-6016.54,0.00054794,120]
[321438566,1712190684384,-6016.54,0.00054794,120]
[321438567,1712190684398,-6016.54,0.00054794,120]
[321438568,1712190684413,-6016.61985618,0.00054794,120]
[321438569,1712190684428,-500.0,0.00054794,2]
[321438570,1712190684443,-500.0,0.00054794,120]
[321438571,1712190684459,-165.99322339,0.00054794,120]
[321438572,1712190684474,-500.0,0.00054794,120]
[321438573,1712190684489,-1035.18,0.00054794,120]
[321438574,1712190684504,-500.0,0.00054794,120]
[321438575,1712190684519,-1047.49,0.00054794,120]
[321438576,1712190684534,-500.0,0.00054794,120]
[321438577,1712190684549,-421.08106086,0.00054795,120]
[321438578,1712190684564,-150.0,0.00054795,120]
[321438579,1712190684579,-150.0,0.00054795,120]
[321438580,1712190684595,-191.47483542,0.00054795,120]
[321438581,1712190684610,-150.0,0.00054795,120]
[321438582,1712190684625,-150.0,0.00054795,120]
[321438583,1712190684645,-150.0,0.00054795,120]
[321438584,1712190684658,-150.0,0.00054795,120]
[321438585,1712190684672,-150.0,0.00054795,120]
[321438586,1712190684688,-150.0,0.00054795,120]
[321438587,1712190684705,-292.06712577,0.00054795,120]
[321438588,1712190684720,-155.9619183,0.00054795,120]
[321438589,1712190684736,-902.64,0.00054795,120]
[321438590,1712190684751,-151.0,0.00054795,120]
[321438591,1712190684766,-151.0,0.00054795,120]
[321438592,1712190684780,-151.0,0.00054795,120]
[321438593,1712190684795,-151.0,0.00054795,120]
[321438594,1712190684810,-151.0,0.00054795,120]
[321438595,1712190684825,-151.0,0.00054795,120]
[321438596,1712190684839,-281.689325,0.00054795,120]
[321438597,1712190684854,-500.0,0.00054795,2]
[321438598,1712190684870,-500.0,0.00054795,2]
[321438599,1712190684885,-500.0,0.00054795,2]
[321438600,1712190684900,-500.0,0.00054795,2]
[321438601,1712190684915,-500.0,0.00054795,2]
[321438602,1712190684930,-500.0,0.00054795,2]
[321438603,1712190684944,-500.0,0.00054795,2]
[321438604,1712190684959,-500.0,0.00054795,2]
[321438605,1712190684973,-500.0,0.00054795,2]
[321438606,1712190684988,-500.0,0.00054795,2]
[321438607,1712190685002,-500.0,0.00054795,2]
[321438608,1712190685016,-500.0,0.00054795,2]
[321438609,1712190685031,-500.0,0.00054795,2]
[321438610,1712190685046,-500.0,0.00054795,2]
[321438611,1712190685061,-780.0,0.00054795,2]
[321438612,1712190685284,-500.0,0.00054795,2]
[321438613,1712190685300,-500.0,0.00054795,2]
[321438614,1712190685315,-500.0,0.00054795,2]
[321438615,1712190685330,-500.0,0.00054795,2]
[321438616,1712190685345,-500.0,0.00054795,2]
[321438617,1712190685361,-500.0,0.00054795,2]
[321438618,1712190685375,-500.0,0.00054795,2]
[321438619,1712190685390,-500.0,0.00054795,2]
[321438620,1712190685405,-500.0,0.00054795,2]
[321438621,1712190685419,-500.0,0.00054795,2]
[321438622,1712190685434,-500.0,0.00054795,2]
[321438623,1712190685448,-500.0,0.00054795,2]
[321438624,1712190685463,-500.0,0.00054795,2]
[321438625,1712190685476,-500.0,0.00054795,2]
[321438626,1712190685491,-500.0,0.00054795,2]
[321438627,1712190685504,-500.0,0.00054795,2]
[321438628,1712190685519,-500.0,0.00054795,2]
[321438629,1712190685533,-500.0,0.00054795,2]
[321438630,1712190685548,-500.0,0.00054795,2]
[321438631,1712190685562,-500.0,0.00054795,2]
[321438632,1712190685576,-523.0,0.00054795,2]
[321438633,1712190685591,-500.0,0.00054795,2]
[321438634,1712190685606,-500.0,0.00054795,2]
[321438635,1712190685621,-500.0,0.00054795,2]
[321438636,1712190685635,-500.0,0.00054795,2]
[321438637,1712190685649,-500.0,0.00054795,2]
[321438638,1712190685663,-500.0,0.00054795,2]
[321438639,1712190685678,-500.0,0.00054795,2]
[321438640,1712190685932,-965.0,0.00054795,2]
[321438641,1712190685958,-323.04118594,0.00054795,90]
[321438642,1712190685967,-347.92951837,0.00054795,30]
[321438643,1712190685976,-10155.10009752,0.00054795,30]
[321438644,1712190685985,-510.99289069,0.00054795,30]
[321438645,1712190685994,-13540.13346335,0.00054796,30]
[321438646,1712190686003,-2147.25722029,0.00054796,30]
[321438647,1712190686012,-21492.34647634,0.00054796,30]
[321438648,1712190686021,-34157.91637651,0.00054796,30]
[321438649,1712190686030,-283.88493928,0.00054796,30]
[321438650,1712190686039,-3385.03336584,0.00054797,30]
[321438651,1712190686049,-19325.31498258,0.00054797,30]
[321438652,1712190686058,-19325.31498258,0.00054797,30]
[321438653,1712190686068,-34157.91637651,0.00054797,30]
[321438654,1712190686086,-170.46692632,0.00054797,30]
[321438655,1712190686095,-70081.18806824,0.00054798,30]
[321438656,1712190686105,-34157.91637651,0.00054798,30]
[321438657,1712190686115,-150.0,0.00054798,14]
[321438658,1712190686125,-11809.91471157,0.00054799,30]
[321438659,1712190686134,-602.12417404,0.00054799,60]
[321438660,1712190686143,-354.8561741,0.00054799,30]
[321438661,1712190686153,-10155.10009752,0.00054799,30]
[321438662,1712190686162,-36503.37274487,0.000548,30]
[321438663,1712190686172,-155.52082685,0.000548,120]
[321438664,1712190686181,-300.0,0.000548,31]
[321438665,1712190686191,-2593.63226754,0.000548,120]
[321438666,1712190686200,-180.31695646,0.000548,30]
[321438667,1712190686210,-153.04872,0.000548,7]
[321438668,1712190686219,-2650.0,0.000548,2]
[321438669,1712190686228,-2914.0,0.000548,120]
[321438670,1712190686238,-2510.06822693,0.000548,30]
[321438671,1712190686247,-494.76644893,0.000548,30]
[321438672,1712190686257,-1183.33275593,0.000548,30]
[321438673,1712190686266,-524.89432103,0.000548,30]
[321438674,1712190686275,-2000.0,0.000548,30]
[321438675,1712190686284,-1630.15068739,0.000548,30]
[321438676,1712190686293,-347.92951837,0.00054801,30]
[321438677,1712190686302,-3385.03336584,0.00054801,30]
[321438678,1712190686311,-13540.13346335,0.00054801,30]
[321438679,1712190686320,-354.8561741,0.00054802,30]
[321438680,1712190686330,-3385.03336584,0.00054803,30]
[321438681,1712190686339,-421.08106086,0.00054803,120]
[321438682,1712190686349,-191.47483542,0.00054803,120]
[321438683,1712190686359,-19325.31498258,0.00054803,30]
[321438684,1712190686369,-388.42808272,0.00054803,60]
[321438685,1712190686378,-21492.34647634,0.00054803,30]
[321438686,1712190686387,-478.07680431,0.00054804,30]
[321438687,1712190686396,-36503.37274487,0.00054805,30]
[321438688,1712190686406,-34157.9163765,0.00054805,30]
[321438689,1712190686415,-8589.02888114,0.00054806,30]
[321438690,1712190686425,-150.0,0.00054806,120]
[321438691,1712190686434,-3385.03336584,0.00054806,30]
[321438692,1712190686443,-347.92951837,0.00054807,30]
[321438693,1712190686453,-215.95142723,0.00054807,30]
[321438694,1712190686462,-3385.03336584,0.00054808,30]
[321438695,1712190686472,-283.88493928,0.00054809,30]
[321438696,1712190686481,-154.04196447,0.00054809,60]
[321438697,1712190686491,-509.54232732,0.00054809,60]
[321438698,1712190686500,-34157.91637651,0.00054809,30]
[321438699,1712190686509,-1765.35531524,0.00054809,30]
[321438700,1712190686518,-215.95142723,0.0005481,30]
[321438701,1712190686527,-421.08106086,0.00054811,120]
[321438702,1712190686536,-191.47483542,0.00054811,120]
[321438703,1712190686545,-70081.18806824,0.00054811,30]
[321438704,1712190686554,-347.92951837,0.00054812,30]
[321438705,1712190686564,-70081.18806824,0.00054812,30]
[321438706,1712190686573,-13540.13346335,0.00054812,30]
[321438707,1712190686582,-3385.03336584,0.00054813,30]
[321438708,1712190686591,-510.99289069,0.00054814,30]
[321438709,1712190686600,-34157.9163765,0.00054814,30]
[321438710,1712190686610,-3385.03336584,0.00054814,30]
[321438711,1712190686619,-354.8561741,0.00054815,30]
[321438712,1712190686628,-2147.25722029,0.00054815,30]
[321438713,1712190686638,-19325.31498258,0.00054815,30]
[321438714,1712190686647,-8589.02888114,0.00054816,30]
[321438715,1712190686656,-231.95301224,0.00054816,30]
[321438716,1712190686665,-8589.02888115,0.00054816,30]
[321438717,1712190686674,-36503.37274487,0.00054817,30]
[321438718,1712190686684,-150.0,0.00054817,120]
[321438719,1712190686693,-347.92951837,0.00054819,30]
[321438720,1712190686702,-421.08106086,0.00054819,120]
[321438721,1712190686711,-191.47483542,0.00054819,120]
[321438722,1712190686721,-215.95142723,0.0005482,30]
[321438723,1712190686730,-10155.10009752,0.00054822,30]
[321438724,1712190686740,-150.0,0.00054822,120]
[321438725,1712190686749,-231.95301224,0.00054823,30]
[321438726,1712190686758,-283.88493928,0.00054823,30]
[321438727,1712190686768,-153.63115965,0.00054824,60]
[321438728,1712190686777,-27740.5072822,0.00054824,2]
[321438729,1712190686786,-34157.91637651,0.00054826,30]
[321438730,1712190686796,-347.92951837,0.00054827,30]
[321438731,1712190686805,-510.99289069,0.00054827,30]
[321438732,1712190686814,-421.08106086,0.00054828,120]
[321438733,1712190686823,-191.47483542,0.00054828,120]
[321438734,1712190686832,-347.92951837,0.00054828,30]
[321438735,1712190686842,-347.92951837,0.00054828,30]
[321438736,1712190686851,-70081.18806824,0.00054829,30]
[321438737,1712190686860,-150.0,0.00054829,120]
[321438738,1712190686871,-19325.31498258,0.0005483,30]
[321438739,1712190686880,-34157.9163765,0.0005483,30]
[321438740,1712190686891,-730.0,0.0005483,30]
[321438741,1712190686900,-500.0,0.0005483,30]
[321438742,1712190686909,-788.0,0.0005483,30]
[321438743,1712190686918,-8589.02888114,0.00054831,30]
[321438744,1712190686926,-354.8561741,0.00054832,30]
[321438745,1712190686935,-478.07680431,0.00054832,30]
[321438746,1712190686944,-21492.34647634,0.00054832,30]
[321438747,1712190686954,-36503.37274487,0.00054833,30]
[321438748,1712190686963,-150.0,0.00054833,14]
[321438749,1712190686972,-231.95301224,0.00054834,30]
[321438750,1712190686982,-34157.9163765,0.00054834,30]
[321438751,1712190686991,-347.92951837,0.00054835,30]
[321438752,1712190687000,-529.32078117,0.00054835,120]
[321438753,1712190687009,-231.95301224,0.00054835,30]
[321438754,1712190687018,-170.46692632,0.00054835,30]
[321438755,1712190687027,-3385.03336584,0.00054836,30]
[321438756,1712190687036,-421.08106086,0.00054836,120]
[321438757,1712190687045,-191.47483542,0.00054836,120]
[321438758,1712190687054,-34157.9163765,0.00054837,30]
[321438759,1712190687064,-8589.02888115,0.00054837,30]
[321438760,1712190687073,-150.0,0.00054837,14]
[321438761,1712190687083,-170.46692632,0.00054837,30]
[321438762,1712190687093,-8589.02888114,0.00054839,30]
[321438763,1712190687102,-354.8561741,0.00054839,30]
[321438764,1712190687114,-354.8561741,0.00054839,30]
[321438765,1712190687124,-10155.10009752,0.00054839,30]
[321438766,1712190687133,-13540.13346335,0.0005484,30]
[321438767,1712190687143,-283.88493928,0.0005484,30]
[321438768,1712190687153,-478.07680431,0.0005484,30]
[321438769,1712190687162,-150.0,0.0005484,120]
[321438770,1712190687173,-1765.35531524,0.00054841,30]
[321438771,1712190687182,-231.95301224,0.00054841,30]
[321438772,1712190687192,-8589.02888114,0.00054841,30]
[321438773,1712190687201,-231.95301224,0.00054841,30]
[321438774,1712190687210,-10155.10009752,0.00054842,30]
[321438775,1712190687219,-2147.25722029,0.00054843,30]
[321438776,1712190687228,-215.95142723,0.00054843,30]
[321438777,1712190687238,-1765.35531524,0.00054844,30]
[321438778,1712190687247,-300.0,0.00054844,14]
[321438779,1712190687256,-231.95301224,0.00054844,30]
[321438780,1712190687265,-510.99289069,0.00054844,30]
[321438781,1712190687274,-11809.91471157,0.00054844,30]
[321438782,1712190687283,-421.08106086,0.00054844,120]
[321438783,1712190687293,-191.47483542,0.00054844,120]
[321438784,1712190687302,-13540.13346335,0.00054844,30]
[321438785,1712190687311,-8589.02888115,0.00054845,30]
[321438786,1712190687320,-13540.13346335,0.00054845,30]
[321438787,1712190687329,-8589.02888115,0.00054847,30]
[321438788,1712190687338,-283.88493928,0.00054847,30]
[321438789,1712190687347,-510.99289069,0.00054847,30]
[321438790,1712190687356,-36503.37274487,0.00054847,30]
[321438791,1712190687367,-347.92951837,0.00054847,30]
[321438792,1712190687376,-2147.25722029,0.00054848,30]
[321438793,1712190687386,-283.88493928,0.00054848,30]
[321438794,1712190687396,-388.42808272,0.00054849,60]
[321438795,1712190687405,-347.92951837,0.00054849,30]
[321438796,1712190687415,-19325.31498258,0.00054849,30]
[321438797,1712190687424,-150.0,0.00054849,120]
[321438798,1712190687434,-151.0,0.00054849,120]
[321438799,1712190687443,-34157.91637651,0.0005485,30]
[321438800,1712190687453,-11809.91471157,0.0005485,30]
[321438801,1712190687462,-150.0,0.00054852,120]
[321438802,1712190687471,-11809.91471157,0.00054852,30]
[321438803,1712190687481,-70081.18806824,0.00054852,30]
[321438804,1712190687491,-347.92951837,0.00054852,30]
[321438805,1712190687500,-21492.34647634,0.00054852,30]
[321438806,1712190687509,-478.07680431,0.00054853,30]
[321438807,1712190687518,-421.08106086,0.00054853,120]
[321438808,1712190687527,-191.47483542,0.00054853,120]
[321438809,1712190687536,-11809.91471157,0.00054853,30]
[321438810,1712190687545,-231.95301224,0.00054854,30]
[321438811,1712190687554,-8589.02888115,0.00054855,30]
[321438812,1712190687563,-34157.9163765,0.00054855,30]
[321438813,1712190687572,-8589.02888114,0.00054856,30]
[321438814,1712190687581,-153.63115974,0.00054856,60]
[321438815,1712190687590,-21492.34647634,0.00054856,30]
[321438816,1712190687599,-215.95142723,0.00054857,30]
[321438817,1712190687608,-510.99289069,0.00054857,30]
[321438818,1712190687618,-347.92951837,0.00054857,30]
[321438819,1712190687627,-3385.03336584,0.00054857,30]
[321438820,1712190687636,-11809.91471157,0.00054857,30]
[321438821,1712190687645,-3385.03336584,0.00054858,30]
[321438822,1712190687654,-34157.91637651,0.00054859,30]
[321438823,1712190687664,-1500.0,0.00054859,14]
[321438824,1712190687673,-354.8561741,0.00054859,30]
[321438825,1712190687683,-34157.9163765,0.0005486,30]
[321438826,1712190687692,-70081.18806824,0.00054861,30]
[321438827,1712190687702,-8589.02888114,0.00054861,30]
[321438828,1712190687711,-347.92951837,0.00054861,30]
[321438829,1712190687721,-421.08106086,0.00054861,120]
[321438830,1712190687730,-191.47483542,0.00054861,120]
[321438831,1712190687739,-70081.18806824,0.00054861,30]
[321438832,1712190687748,-34157.9163765,0.00054861,30]
[321438833,1712190687758,-21492.34647634,0.00054862,30]
[321438834,1712190687767,-170.46692632,0.00054862,30]
[321438835,1712190687776,-231.95301224,0.00054863,30]
[321438836,1712190687785,-150.0,0.00054863,120]
[321438837,1712190687794,-283.88493928,0.00054863,30]
[321438838,1712190687804,-215.95142723,0.00054863,30]
[321438839,1712190687813,-34157.91637651,0.00054864,30]
[321438840,1712190687822,-354.8561741,0.00054864,30]
[321438841,1712190687831,-283.88493928,0.00054864,30]
[321438842,1712190687841,-150.0,0.00054864,14]
[321438843,1712190687850,-2147.25722029,0.00054865,30]
[321438844,1712190687859,-3385.03336584,0.00054865,30]
[321438845,1712190687870,-3385.03336584,0.00054865,30]
[321438846,1712190687879,-11809.91471157,0.00054865,30]
[321438847,1712190687888,-3385.03336584,0.00054866,30]
[321438848,1712190687897,-10155.10009752,0.00054866,30]
[321438849,1712190687907,-36503.37274487,0.00054867,30]
[321438850,1712190687917,-1765.35531524,0.00054867,30]
[321438851,1712190687926,-1765.35531524,0.00054868,30]
[321438852,1712190687935,-421.08106086,0.00054869,120]
[321438853,1712190687944,-191.47483542,0.00054869,120]
[321438854,1712190687953,-2147.25722029,0.00054869,30]
[321438855,1712190687962,-215.95142723,0.00054871,30]
[321438856,1712190687972,-2147.25722029,0.00054871,30]
[321438857,1712190687981,-19325.31498258,0.00054871,30]
[321438858,1712190687990,-215.95142723,0.00054872,30]
[321438859,1712190687999,-510.99289069,0.00054872,30]
[321438860,1712190688009,-200.0,0.00054873,120]
[321438861,1712190688018,-70081.18806824,0.00054874,30]
[321438862,1712190688027,-347.92951837,0.00054874,30]
[321438863,1712190688037,-11809.91471157,0.00054874,30]
[321438864,1712190688047,-150.0,0.00054874,120]
[321438865,1712190688056,-354.8561741,0.00054875,30]
[321438866,1712190688065,-3385.03336584,0.00054875,30]
[321438867,1712190688076,-150.0,0.00054876,14]
[321438868,1712190688086,-3195.6,0.00054876,117]
[321438869,1712190688095,-154.04196447,0.00054876,60]
[321438870,1712190688104,-170.46692632,0.00054876,30]
[321438871,1712190688114,-3385.03336584,0.00054877,30]
[321438872,1712190688124,-150.0,0.00054877,120]
[321438873,1712190688133,-10155.10009752,0.00054877,30]
[321438874,1712190688142,-2147.25722029,0.00054877,30]
[321438875,1712190688153,-421.08106086,0.00054877,120]
[321438876,1712190688162,-191.47483542,0.00054877,120]
[321438877,1712190688171,-170.46692632,0.00054878,30]
[321438878,1712190688181,-510.99289069,0.00054878,30]
[321438879,1712190688190,-34157.9163765,0.00054878,30]
[321438880,1712190688199,-478.07680431,0.00054878,30]
[321438881,1712190688208,-347.92951837,0.00054879,30]
[321438882,1712190688218,-10155.10009752,0.00054879,30]
[321438883,1712190688227,-3385.03336584,0.0005488,30]
[321438884,1712190688236,-8589.02888114,0.0005488,30]
[321438885,1712190688246,-1765.35531524,0.0005488,30]
[321438886,1712190688256,-347.92951837,0.00054881,30]
[321438887,1712190688267,-150.0,0.00054881,14]
[321438888,1712190688277,-509.54232732,0.00054881,60]
[321438889,1712190688286,-150.0,0.00054882,14]
[321438890,1712190688296,-170.46692632,0.00054882,30]
[321438891,1712190688305,-13540.13346335,0.00054883,30]
[321438892,1712190688314,-478.07680431,0.00054883,30]
[321438893,1712190688323,-8589.02888115,0.00054883,30]
[321438894,1712190688332,-478.07680431,0.00054884,30]
[321438895,1712190688341,-36503.37274487,0.00054885,30]
[321438896,1712190688351,-21492.34647634,0.00054885,30]
[321438897,1712190688360,-215.95142723,0.00054885,30]
[321438898,1712190688370,-36503.37274487,0.00054885,30]
[321438899,1712190688380,-8589.02888114,0.00054885,30]
[321438900,1712190688389,-11809.91471157,0.00054886,30]
[321438901,1712190688398,-421.08106086,0.00054886,120]
[321438902,1712190688408,-150.0,0.00054886,120]
[321438903,1712190688417,-191.47483542,0.00054886,120]
[321438904,1712190688426,-150.0,0.00054886,14]
[321438905,1712190688435,-1765.35531524,0.00054887,30]
[321438906,1712190688444,-197.38677701,0.00054887,60]
[321438907,1712190688454,-170.46692632,0.00054887,30]
[321438908,1712190688463,-8589.02888115,0.00054888,30]
[321438909,1712190688472,-19325.31498258,0.00054888,30]
[321438910,1712190688481,-11173.14162802,0.00054888,120]
[321438911,1712190688490,-150.0,0.00054888,14]
[321438912,1712190688500,-167.01357355,0.00054888,98]
[321438913,1712190688509,-21492.34647634,0.00054889,30]
[321438914,1712190688518,-150.0,0.00054889,14]
[321438915,1712190688527,-1765.35531524,0.00054889,30]
[321438916,1712190688537,-347.92951837,0.0005489,30]
[321438917,1712190688546,-153.54975419,0.0005489,60]
[321438918,1712190688556,-283.88493928,0.00054891,30]
[321438919,1712190688565,-150.0,0.00054891,14]
[321438920,1712190688574,-159.96854777,0.00054893,60]
[321438921,1712190688584,-197.38677715,0.00054893,60]
[321438922,1712190688593,-1765.35531524,0.00054894,30]
[321438923,1712190688603,-421.08106086,0.00054894,120]
[321438924,1712190688613,-191.47483542,0.00054894,120]
[321438925,1712190688623,-2713.39568492,0.00054895,64]
[321438926,1712190688632,-8589.02888115,0.00054895,30]
[321438927,1712190688641,-478.07680431,0.00054895,30]
[321438928,1712190688651,-10155.10009752,0.00054895,30]
[321438929,1712190688661,-8589.02888115,0.00054896,30]
[321438930,1712190688670,-3385.03336584,0.00054897,30]
[321438931,1712190688680,-150.0,0.00054897,120]
[321438932,1712190688689,-19325.31498258,0.00054898,30]
[321438933,1712190688699,-34157.91637651,0.00054898,30]
[321438934,1712190688708,-36503.37274487,0.00054898,30]
[321438935,1712190688718,-170.46692632,0.00054899,30]
[321438936,1712190688727,-13540.13346335,0.000549,30]
[321438937,1712190688736,-1854.26085583,0.000549,120]
[321438938,1712190688745,-969.66577802,0.000549,120]
[321438939,1712190688755,-13540.13346335,0.000549,30]
[321438940,1712190688765,-150.0,0.00054901,14]
[321438941,1712190688774,-21492.34647634,0.00054902,30]
[321438942,1712190688784,-421.08106086,0.00054902,120]
[321438943,1712190688793,-191.47483542,0.00054902,120]
[321438944,1712190688802,-150.0,0.00054904,120]
[321438945,1712190688812,-150.0,0.00054909,120]
[321438946,1712190688821,-421.08106086,0.00054911,120]
[321438947,1712190688831,-191.47483542,0.00054911,120]
[321438948,1712190688842,-167.52558323,0.00054911,60]
[321438949,1712190688851,-428.75879949,0.00054914,14]
[321438950,1712190688860,-3170.77637,0.00054916,30]
[321438951,1712190688870,-150.0,0.00054918,14]
[321438952,1712190688879,-421.08106086,0.00054919,120]
[321438953,1712190688889,-191.47483542,0.00054919,120]
[321438954,1712190688898,-150.0,0.0005492,120]
[321438955,1712190688908,-421.08106086,0.00054927,120]
[321438956,1712190688917,-191.47483542,0.00054927,120]
[321438957,1712190688927,-150.0,0.00054929,14]
[321438958,1712190688936,-150.0,0.00054929,14]
[321438959,1712190688946,-154.04196465,0.00054931,60]
[321438960,1712190688955,-500.0,0.00054931,120]
[321438961,1712190688964,-150.0,0.00054931,120]
[321438962,1712190688973,-150.0,0.00054931,120]
[321438963,1712190688982,-509.54232732,0.00054932,60]
[321438964,1712190688992,-421.08106086,0.00054936,120]
[321438965,1712190689001,-191.47483542,0.00054936,120]
[321438966,1712190689010,-150.0,0.00054943,120]
[321438967,1712190689215,-421.08106086,0.00054944,120]
[321438968,1712190689225,-191.47483542,0.00054944,120]
[321438969,1712190689234,-300.0,0.00054952,14]
[321438970,1712190689243,-421.08106086,0.00054952,120]
[321438971,1712190689252,-191.47483542,0.00054952,120]
[321438972,1712190689262,-150.0,0.00054953,14]
[321438973,1712190689271,-150.0,0.00054954,120]
[321438974,1712190689280,-150.0,0.00054959,120]
[321438975,1712190689290,-150.0,0.00054959,120]
[321438976,1712190689299,-421.08106086,0.0005496,120]
[321438977,1712190689308,-191.47483542,0.0005496,120]
[321438978,1712190689317,-150.0,0.00054963,14]
[321438979,1712190689326,-150.0,0.00054966,120]
[321438980,1712190689335,-421.08106086,0.00054969,120]
[321438981,1712190689345,-191.47483542,0.00054969,120]
[321438982,1712190689354,-150.0,0.00054975,14]
[321438983,1712190689364,-150.0,0.00054977,14]
[321438984,1712190689373,-421.08106086,0.00054977,120]
[321438985,1712190689383,-150.0,0.00054977,120]
[321438986,1712190689392,-191.47483542,0.00054977,120]
[321438987,1712190689402,-150.0,0.00054982,14]
[321438988,1712190689412,-150.0,0.00054983,14]
[321438989,1712190689421,-421.08106086,0.00054985,120]
[321438990,1712190689431,-191.47483542,0.00054985,120]
[321438991,1712190689441,-150.0,0.00054986,120]
[321438992,1712190689450,-150.0,0.00054988,120]
[321438993,1712190689459,-1249.96692148,0.00054992,14]
[321438994,1712190689469,-421.08106086,0.00054994,120]
[321438995,1712190689479,-191.47483542,0.00054994,120]
[321438996,1712190689489,-150.0,0.00055,120]
[321438997,1712190689499,-12236.23424332,0.00055,120]
[321438998,1712190689509,-165.70246099,0.00055,120]
[321438999,1712190689519,-1470.00237881,0.00055,120]
[321439000,1712190689529,-61869.21370211,0.00055,120]
[321439001,1712190689539,-287.95950216,0.00055,30]
[321439002,1712190689548,-1546.82405287,0.00055,120]
[321439003,1712190689558,-317.76441972,0.00055,30]
[321439004,1712190689567,-41274.36908897,0.00055,40]
[321439005,1712190689576,-20484.0,0.00055,14]
[321439006,1712190689586,-1022.0,0.00055,120]
[321439007,1712190689595,-6721.36234936,0.00055,60]
[321439008,1712190689604,-160.82183394,0.00055,30]
[321439009,1712190689614,-300.0,0.00055,60]
[321439010,1712190689624,-299.81217614,0.00055,30]
[321439011,1712190689633,-1000.0,0.00055,7]
[321439012,1712190689643,-2327.95001492,0.00055,7]
[321439013,1712190689653,-2127.59671573,0.00055,5]
[321439014,1712190689663,-1072.0,0.00055,104]
[321439015,1712190689673,-1050.0,0.00055,3]
[321439016,1712190689682,-5800.0,0.00055,7]
[321439017,1712190689691,-300.0,0.00055,15]
[321439018,1712190689701,-421.08106086,0.00055002,120]
[321439019,1712190689710,-191.47483542,0.00055002,120]
[321439020,1712190689720,-150.0,0.0005501,14]
[321439021,1712190689729,-421.08106086,0.0005501,120]
[321439022,1712190689739,-191.47483542,0.0005501,120]
[321439023,1712190689748,-150.0,0.00055011,120]
[321439024,1712190689759,-388.42808273,0.00055012,120]
[321439025,1712190689768,-150.0,0.00055014,120]
[321439026,1712190689778,-150.0,0.00055014,14]
[321439027,1712190689787,-421.08106086,0.00055019,120]
[321439028,1712190689797,-191.47483542,0.00055019,120]
[321439029,1712190689807,-150.0,0.00055023,120]
[321439030,1712190689817,-421.08106086,0.00055027,120]
[321439031,1712190689826,-191.47483542,0.00055027,120]
[321439032,1712190689836,-150.0,0.00055034,120]
[321439033,1712190689846,-509.5423275,0.00055035,120]
[321439034,1712190689855,-421.08106086,0.00055035,120]
[321439035,1712190689865,-191.47483542,0.00055035,120]
[321439036,1712190689874,-150.0,0.0005504,14]
[321439037,1712190689884,-150.0,0.0005504,14]
[321439038,1712190689893,-150.0,0.00055041,120]
[321439039,1712190689903,-1131.11,0.00055041,120]
[321439040,1712190689913,-1500.0,0.00055043,14]
[321439041,1712190689923,-421.08106086,0.00055043,120]
[321439042,1712190689933,-191.47483542,0.00055043,120]
[321439043,1712190689943,-602.12417417,0.00055045,120]
[321439044,1712190689952,-150.0,0.00055046,120]
[321439045,1712190689961,-421.08106086,0.00055052,120]
[321439046,1712190689970,-191.47483542,0.00055052,120]
[321439047,1712190689980,-150.0,0.00055057,120]
[321439048,1712190689989,-2386.9203294,0.00055058,2]
[321439049,1712190689998,-219.1750199,0.00055058,2]
[321439050,1712190690008,-291.67523441,0.00055058,120]
[321439051,1712190690017,-6462.0375079,0.00055058,2]
[321439052,1712190690026,-159.96854787,0.00055059,120]
[321439053,1712190690036,-421.08106086,0.0005506,120]
[321439054,1712190690046,-191.47483542,0.0005506,120]
[321439055,1712190690055,-150.0,0.00055066,14]
[321439056,1712190690064,-4568.39026316,0.00055067,15]
[321439057,1712190690076,-7515.55654052,0.00055067,15]
[321439058,1712190690085,-38242.17669179,0.00055067,15]
[321439059,1712190690094,-12097.63665729,0.00055067,15]
[321439060,1712190690103,-1005.16160769,0.00055067,15]
[321439061,1712190690113,-5702.25321371,0.00055067,15]
[321439062,1712190690123,-150.0,0.00055067,14]